bitfinex-derivatives/quotes_ETHF0:USTF0_20260306
["timestamp","ask_amount","ask_price","bid_price","bid_amount"]
[1772815823785,0.60536299,1976.1,1975.4,0.585499]
[1772815824784,0.60536299,1976.1,1975.1,0.585499]
[1772815829387,0.00527523,1976.1,1975.3,0.585499]
[1772815829586,0.60008776,1976.3,1975.5,0.585499]
[1772815829786,13.53898009,1976.6,1975.7,0.585499]
[1772815830086,0.60008776,1976.6,1975.7,0.585499]
[1772815830684,0.6050519,1976.6,1975.7,0.585499]
[1772815831289,0.6050519,1976.6,1975.9,0.585499]
[1772815831885,0.57923262,1976.4,1975.6,0.59410416]
[1772815832194,0.57923262,1976.2,1975.4,7.22610416]
[1772815832392,0.57923262,1976.2,1975.4,0.59410416]
[1772815832693,0.57923262,1976.0,1975.3,0.59410416]
[1772815834297,0.57923262,1976.0,1975.0,0.59410416]
[1772815834487,0.57923262,1975.6,1974.9,0.00541639]
[1772815834692,0.57923262,1975.4,1974.9,0.00541639]
[1772815835896,0.57923262,1975.4,1974.1,0.59410416]
[1772815836100,0.57923262,1975.2,1974.3,0.59410416]
[1772815836795,0.58576346,1975.2,1974.3,0.59905384]
[1772815837097,0.00653084,1975.2,1974.3,0.59905384]
[1772815837392,0.00653084,1975.2,1974.3,0.85228384]
[1772815837591,0.57923262,1975.8,1974.6,0.59410416]
[1772815837895,0.57923262,1975.8,1974.8,0.59410416]
[1772815838497,0.58456749,1975.8,1974.8,0.59410416]
[1772815843100,0.58456749,1975.8,1974.9,7.22710416]
[1772815843298,0.58456749,1975.8,1975.0,0.59410416]
[1772815843698,0.57923262,1975.7,1974.8,0.59410416]
[1772815844701,0.58456749,1975.8,1974.8,0.59410416]
[1772815845198,0.00533487,1975.8,1974.9,0.25316]
[1772815845400,0.00533487,1975.8,1975.0,0.59410416]
[1772815846105,0.00533487,1975.8,1975.1,0.59410416]
[1772815846306,0.00533487,1975.8,1975.3,0.59410416]
[1772815846509,0.57923262,1976.1,1975.3,0.59410416]
[1772815846713,0.57923262,1976.4,1975.3,0.59410416]
[1772815846903,6.32846097,1976.5,1975.3,0.59410416]
[1772815846904,0.57923262,1976.2,1975.3,0.59410416]
[1772815847602,0.58370267,1976.2,1975.3,0.59410416]
[1772815848807,0.58370267,1976.2,1975.3,7.22710416]
[1772815849007,0.58370267,1976.2,1975.4,0.59410416]
[1772815851508,0.57923262,1975.8,1974.9,0.59410416]
[1772815855304,0.57923262,1975.8,1975.1,0.59410416]
[1772815857112,0.57923262,1975.8,1974.7,0.58244984]
[1772815857614,0.58244931,1975.6,1974.7,0.58244984]
[1772815861511,0.58244931,1975.8,1974.8,0.58244984]
[1772815861716,0.58244931,1975.8,1974.9,0.60546239]
[1772815862017,7.8946365,1976.4,1974.9,0.60546239]
[1772815862018,0.58394694,1976.4,1975.5,0.60546239]
[1772815862315,0.58394694,1977.0,1975.9,0.60546239]
[1772815862905,0.58394694,1977.0,1976.1,0.60546239]
[1772815863110,0.58394694,1977.0,1976.2,0.60546239]
[1772815863111,0.58781527,1977.0,1976.2,0.60546239]
[1772815864007,0.58781527,1977.0,1976.1,0.00384742]
[1772815864405,0.58781527,1977.0,1975.2,0.25312]
[1772815864406,0.58394694,1976.8,1975.8,0.60546239]
[1772815864607,0.58394694,1976.6,1975.5,6.633]
[1772815864812,0.58394694,1976.6,1975.6,0.60546239]
[1772815865011,0.58394694,1976.6,1974.8,0.60546239]
[1772815865215,0.58394694,1976.4,1975.0,0.60546239]
[1772815865413,0.58394694,1976.4,1975.0,0.60918707]
[1772815865609,0.58394694,1976.4,1975.2,0.60546239]
[1772815868711,0.58394694,1976.4,1975.4,0.60546239]
[1772815869906,0.58394694,1976.4,1975.5,0.60546239]
[1772815873010,0.58394694,1976.4,1975.4,0.60546239]
[1772815873216,0.58394694,1976.2,1975.4,0.60546239]
[1772815875919,0.58394694,1976.5,1975.4,0.60546239]
[1772815876821,0.58394694,1976.5,1975.5,6.632]
[1772815877017,0.58394694,1976.5,1975.6,0.60546239]
[1772815880216,0.58394694,1976.9,1975.6,0.60546239]
[1772815880418,0.58394694,1976.9,1975.7,0.60546239]
[1772815881919,0.58394694,1976.9,1975.8,0.60546239]
[1772815883425,0.00386833,1977.0,1976.2,0.60546239]
[1772815883624,0.00386833,1977.0,1976.4,0.60546239]
[1772815883820,0.00386833,1977.0,1976.4,0.61082587]
[1772815884019,0.58781527,1977.0,1976.4,0.61082587]
[1772815884223,0.58781527,1977.0,1976.4,0.00536348]
[1772815884423,0.58781527,1977.0,1976.4,0.61082587]
[1772815884626,0.00386833,1977.0,1976.4,0.61082587]
[1772815886430,0.58394694,1977.3,1976.4,0.61082587]
[1772815887429,0.58934677,1977.3,1976.4,0.61082587]
[1772815888534,2.08472005,1977.4,1976.4,0.61082587]
[1772815888735,2.66866699,1977.4,1976.4,0.61082587]
[1772815889231,2.66866699,1977.4,1976.6,0.60546239]
[1772815889232,0.58394694,1977.3,1976.6,0.60546239]
[1772815889436,0.58394694,1977.3,1976.6,7.23446239]
[1772815889635,0.59028919,1977.3,1976.6,7.23446239]
[1772815890037,0.59028919,1977.3,1976.7,0.60546239]
[1772815893035,0.59028919,1977.3,1976.5,0.59399951]
[1772815894634,0.59028919,1977.3,1976.4,0.00536348]
[1772815894841,0.59028919,1977.3,1976.4,0.59936299]
[1772815896639,0.59028919,1977.3,1976.4,0.00536348]
[1772815896841,0.59028919,1977.3,1976.4,0.59936299]
[1772815898038,0.00634225,1977.3,1976.6,0.59399951]
[1772815900744,0.55866853,1977.3,1976.6,0.59399951]
[1772815906542,0.55866853,1977.3,1976.4,7.22736299]
[1772815906845,0.55232628,1977.2,1976.4,0.59936299]
[1772815908247,0.55232628,1977.0,1976.4,0.59936299]
[1772815909544,0.55232628,1977.2,1976.4,0.59936299]
[1772815910044,0.55232628,1977.0,1976.4,0.59936299]
[1772815910346,0.55232628,1977.0,1976.4,0.00536348]
[1772815910749,0.55232628,1977.2,1976.4,0.59936299]
[1772815910949,1.1344428,1977.1,1976.4,0.59936299]
[1772815911147,0.55232628,1977.1,1976.4,0.59936299]
[1772815912547,0.55232628,1976.9,1976.4,7.22736299]
[1772815913747,0.55232628,1976.9,1976.4,6.63336348]
[1772815914047,0.55232628,1976.7,1975.9,0.59399951]
[1772815914247,0.55232628,1976.5,1975.9,0.59399951]
[1772815914849,0.55232628,1976.5,1975.9,7.22199951]
[1772815915140,0.55232628,1976.5,1975.9,7.2268302]
[1772815915340,0.55232628,1976.5,1976.0,0.58015598]
[1772815917742,0.5604643,1976.9,1976.0,0.58015598]
[1772815917946,0.5604643,1976.7,1976.0,0.58015598]
[1772815919247,0.5604643,1977.1,1976.0,0.58015598]
[1772815919440,7.38654873,1977.0,1976.0,0.58015598]
[1772815919643,0.5604643,1977.0,1976.0,0.58015598]
[1772815920344,0.5604643,1976.8,1976.0,0.58015598]
[1772815920539,0.5604643,1976.8,1976.1,6.629]
[1772815920747,0.5604643,1976.8,1976.1,7.20915598]
[1772815920947,0.5604643,1976.8,1976.2,0.58015598]
[1772815922446,0.5604643,1976.8,1976.0,0.59493257]
[1772815922652,0.6046196,1976.6,1975.9,0.00483069]
[1772815922944,0.6046196,1976.5,1975.9,0.00483069]
[1772815923143,0.6046196,1976.3,1975.4,0.59493257]
[1772815924049,0.6046196,1976.3,1975.4,0.60105045]
[1772815924745,0.6046196,1976.5,1975.4,0.60105045]
[1772815925348,0.6046196,1976.3,1975.5,0.59493257]
[1772815925950,0.6046196,1976.7,1975.5,0.59493257]
[1772815926142,2.12301272,1976.8,1975.5,0.59493257]
[1772815926143,0.6046196,1976.6,1975.5,0.59493257]
[1772815927152,2.72763232,1976.8,1975.7,0.59493257]
[1772815927543,0.6046196,1976.7,1975.7,0.59493257]
[1772815927746,0.6046196,1976.7,1975.9,0.59493257]
[1772815928148,0.6046196,1976.7,1976.0,0.59493257]
[1772815928749,0.6046196,1976.7,1975.8,7.22393257]
[1772815929048,0.6046196,1976.7,1975.9,0.59493257]
[1772815931350,2.12301272,1976.8,1975.9,0.59493257]
[1772815931545,2.72763232,1976.8,1975.9,0.59493257]
[1772815932051,0.6046196,1977.0,1976.0,0.59493257]
[1772815932452,0.6046196,1977.0,1976.1,0.59493257]
[1772815933054,0.6046196,1977.2,1976.1,0.59493257]
[1772815934452,0.6046196,1977.2,1976.3,0.59493257]
[1772815934957,0.61096185,1977.3,1976.3,0.59493257]
[1772815935650,0.00634225,1977.3,1976.3,0.59493257]
[1772815937155,0.61096185,1977.3,1976.3,0.59493257]
[1772815937456,0.61096185,1977.3,1976.5,0.59493257]
[1772815938259,2.70136086,1977.8,1976.7,0.59493257]
[1772815938455,0.6046196,1977.7,1976.7,0.59493257]
[1772815938656,0.6046196,1977.7,1976.9,0.59493257]
[1772815939359,0.60963878,1977.7,1976.9,0.59906969]
[1772815939555,0.00501918,1977.7,1976.9,0.59906969]
[1772815940053,0.60963878,1977.7,1977.1,0.59493257]
[1772815942666,0.00501918,1977.7,1977.1,0.59493257]
[1772815942961,0.00501918,1977.7,1977.3,0.59493257]
[1772815942962,0.60963878,1977.7,1977.3,0.59493257]
[1772815945462,2.70136086,1977.8,1977.3,0.59493257]
[1772815945961,0.6046196,1977.7,1977.3,0.59493257]
[1772815946461,0.60880644,1977.7,1977.3,0.59493257]
[1772815946957,0.00418684,1977.7,1977.3,0.59493257]
[1772815947162,0.6046196,1977.7,1977.3,0.59493257]
[1772815948065,0.60836359,1977.7,1977.3,0.59493257]
[1772815948362,0.00374399,1977.7,1977.3,0.59493257]
[1772815948563,2.09674126,1977.8,1977.3,0.59493257]
[1772815949359,2.70136086,1977.8,1977.3,0.59493257]
[1772815949561,2.70560577,1977.8,1977.3,0.59493257]
[1772815950463,0.6046196,1977.7,1977.0,0.59493257]
[1772815950660,0.6046196,1977.7,1976.9,0.00413712]
[1772815950661,0.6046196,1977.7,1977.2,0.59493257]
[1772815952161,0.6046196,1977.7,1977.0,7.17588703]
[1772815953957,0.6046196,1977.7,1976.9,0.00413712]
[1772815954262,0.00424491,1977.8,1976.9,0.54988703]
[1772815955460,0.00424491,1977.8,1977.1,0.54988703]
[1772815955664,0.00424491,1977.8,1977.3,0.54988703]
[1772815955962,0.60673771,1978.1,1977.3,0.54988703]
[1772815957267,0.61178261,1978.1,1977.3,0.54988703]
[1772815957560,0.61178261,1978.1,1977.5,0.54988703]
[1772815957766,0.61178261,1978.1,1977.7,0.54988703]
[1772815958368,0.61178261,1978.1,1977.1,0.54988703]
[1772815958568,0.61178261,1978.1,1977.4,0.54988703]
[1772815958969,0.60673771,1977.9,1976.9,0.00643888]
[1772815959174,0.60673771,1977.9,1976.9,0.55632591]
[1772815959871,0.60673771,1977.7,1976.9,0.55632591]
[1772815960370,0.60673771,1977.7,1976.9,0.00643888]
[1772815961568,0.60673771,1977.3,1976.2,0.54988703]
[1772815961765,0.60673771,1977.1,1976.2,0.54988703]
[1772815962975,0.60673771,1977.1,1976.2,0.5535513]
[1772815972966,0.60673771,1977.1,1976.2,1.7975513]
[1772815973169,0.60673771,1977.1,1976.3,0.54988703]
[1772815973369,0.60673771,1977.1,1976.5,0.54988703]
[1772815974475,0.60673771,1977.5,1976.6,0.54988703]
[1772815976771,0.54959072,1976.9,1975.8,0.5588219]
[1772815976976,0.54959072,1976.7,1975.8,0.5588219]
[1772815978072,0.554524,1976.7,1975.8,0.56302651]
[1772815979375,0.54959072,1976.5,1975.8,0.00420461]
[1772815980480,0.54959072,1976.5,1975.2,0.5588219]
[1772815980676,0.54959072,1976.1,1975.2,0.5588219]
[1772815980880,0.54959072,1976.1,1974.6,1.62368705]
[1772815980881,0.54959072,1976.1,1974.7,0.5588219]
[1772815981083,0.54959072,1976.0,1974.7,0.5588219]
[1772815981483,0.54959072,1976.0,1974.7,0.56257351]
[1772815982488,0.54959072,1976.0,1974.9,0.58410399]
[1772815982888,0.5543226,1976.4,1975.1,0.58410399]
[1772815983078,0.5543226,1976.4,1975.3,0.58410399]
[1772815985788,0.5543226,1976.6,1975.3,0.58410399]
[1772815986988,0.5543226,1976.6,1975.5,0.58410399]
[1772815988092,0.5543226,1976.6,1975.4,0.2531]
[1772815988093,0.5543226,1976.6,1975.7,0.58410399]
[1772816000702,0.5543226,1976.6,1975.8,0.58410399]
[1772816001100,0.5543226,1976.5,1975.6,0.58410399]
[1772816001895,0.5543226,1976.5,1975.1,6.63]
[1772816001896,0.5543226,1976.1,1975.1,6.63]
[1772816002102,0.5543226,1975.9,1975.1,0.58410399]
[1772816002497,0.5543226,1975.9,1974.8,0.58410399]
[1772816004099,0.5543226,1975.7,1974.8,0.58410399]
[1772816004300,0.5543226,1975.7,1974.7,0.00375161]
[1772816004501,0.5543226,1975.7,1974.7,0.5878556]
[1772816004802,0.5543226,1975.5,1974.7,0.00375161]
[1772816006599,0.5543226,1975.3,1974.0,0.58410399]
[1772816006794,0.5543226,1975.1,1974.0,0.58410399]
[1772816007601,0.5591586,1975.1,1974.0,0.58836153]
[1772816008100,0.5543226,1974.9,1974.0,0.58836153]
[1772816008504,0.5543226,1974.9,1974.0,0.00425754]
[1772816008702,0.5543226,1974.9,1973.8,0.58410399]
[1772816008899,0.5543226,1974.7,1973.2,0.58410399]
[1772816009400,0.5543226,1974.5,1973.2,0.58410399]
[1772816009598,0.5543226,1974.4,1973.2,0.58410399]
[1772816009802,0.5543226,1974.3,1973.2,0.58887996]
[1772816010202,0.5543226,1974.3,1973.2,0.00477597]
[1772816010502,0.5543226,1974.1,1973.2,0.00477597]
[1772816011099,0.5543226,1974.1,1973.2,0.58887996]
[1772816011409,0.5543226,1974.1,1973.2,0.00477597]
[1772816011905,3.31978214,1974.1,1973.2,0.00477597]
[1772816012099,0.57022465,1974.0,1973.2,0.00477597]
[1772816012300,0.57022465,1974.0,1973.2,0.5766434]
[1772816013903,0.57022465,1974.4,1973.3,0.57186743]
[1772816015904,0.57022465,1974.4,1973.5,0.57186743]
[1772816016099,0.57022465,1974.8,1973.5,0.57186743]
[1772816016299,0.57022465,1974.4,1973.2,0.00477597]
[1772816016503,0.57022465,1973.6,1972.2,0.57186743]
[1772816016707,0.57022465,1973.5,1972.2,0.57186743]
[1772816017500,0.57651221,1973.5,1972.4,0.57186743]
[1772816018304,0.57651221,1973.5,1972.5,0.57186743]
[1772816018907,0.00628756,1973.5,1972.5,0.57186743]
[1772816019105,0.57022465,1974.0,1972.7,0.57186743]
[1772816019508,0.57022465,1974.0,1973.0,0.57186743]
[1772816020008,0.5762429,1974.0,1973.0,0.57186743]
[1772816020507,0.00601825,1974.0,1973.2,0.57186743]
[1772816020901,0.57022465,1974.4,1973.2,0.57186743]
[1772816021299,0.57022465,1974.6,1973.4,0.57186743]
[1772816021905,0.57437074,1974.6,1973.4,0.57186743]
[1772816022204,0.57437074,1974.6,1973.6,0.57186743]
[1772816022409,0.57437074,1974.6,1973.8,0.57186743]
[1772816022608,0.00414609,1974.6,1973.8,0.57186743]
[1772816022808,0.25316,1975.0,1973.8,0.57186743]
[1772816022809,0.57022465,1975.0,1973.8,0.57186743]
[1772816023105,0.57022465,1975.0,1974.0,0.57186743]
[1772816023307,0.57022465,1975.4,1974.0,0.57186743]
[1772816023507,0.57022465,1975.2,1974.0,0.57186743]
[1772816023907,0.57022465,1975.0,1974.0,0.57186743]
[1772816024109,0.57022465,1975.0,1973.7,0.57186743]
[1772816028007,0.57022465,1975.0,1973.9,0.57186743]
[1772816028211,0.5751426,1975.2,1974.1,0.57186743]
[1772816028407,0.5751426,1975.2,1974.3,0.57186743]
[1772816031305,0.5751426,1975.2,1974.4,0.57186743]
[1772816034009,0.5751426,1975.2,1974.3,0.57186743]
[1772816035516,0.5751426,1975.2,1974.1,0.55605759]
[1772816035918,0.57633301,1974.9,1974.1,0.55605759]
[1772816036318,0.57633301,1975.1,1974.1,0.55605759]
[1772816037709,0.57633301,1975.1,1974.2,0.55605759]
[1772816038613,0.57633301,1975.1,1974.3,0.55605759]
[1772816038820,0.00491795,1975.2,1974.4,0.55605759]
[1772816039211,0.00491795,1975.2,1974.4,7.18805759]
[1772816039418,0.00491795,1975.2,1974.5,0.55605759]
[1772816040224,0.57633301,1975.7,1974.6,0.55605759]
[1772816040722,0.57633301,1975.7,1974.7,0.55605759]
[1772816041118,0.58233526,1975.7,1974.7,0.55605759]
[1772816041513,0.57633301,1975.0,1973.9,0.55605759]
[1772816041712,0.56503122,1974.7,1973.9,0.55605759]
[1772816041916,0.56503122,1974.7,1973.7,0.58266132]
[1772816042825,0.56503122,1974.7,1973.8,0.58266132]
[1772816043015,0.56503122,1975.1,1974.0,0.58266132]
[1772816043218,0.56503122,1974.9,1974.0,0.58266132]
[1772816043615,0.56503122,1975.1,1974.0,0.58266132]
[1772816043820,0.56503122,1974.9,1974.0,0.58266132]
[1772816044921,0.56503122,1975.4,1974.1,0.58266132]
[1772816045123,0.56503122,1975.4,1974.3,0.58266132]
[1772816045421,0.56503122,1975.4,1974.4,0.58266132]
[1772816047123,0.58500226,1975.3,1974.4,0.58266132]
[1772816047326,0.25307,1975.6,1974.4,0.58266132]
[1772816047327,0.56503122,1975.2,1974.4,0.58266132]
[1772816048423,0.56503122,1975.2,1974.2,0.58266132]
[1772816049028,0.56503122,1974.8,1973.7,6.631]
[1772816049226,0.56503122,1974.6,1973.8,0.58266132]
[1772816049530,0.56503122,1974.6,1973.6,0.58918898]
[1772816049720,0.56503122,1974.4,1973.6,0.58918898]
[1772816051423,0.56503122,1974.7,1973.7,0.58266132]
[1772816051621,0.56503122,1974.7,1973.9,0.58266132]
[1772816051828,0.56503122,1975.1,1974.1,0.58266132]
[1772816052128,0.56503122,1975.1,1974.3,0.58266132]
[1772816052831,0.56503122,1975.3,1974.3,0.58266132]
[1772816053125,0.56503122,1975.2,1974.3,0.58266132]
[1772816053326,2.08804349,1975.5,1974.3,0.58266132]
[1772816053327,0.56503122,1975.4,1974.3,0.58266132]
[1772816054231,0.56503122,1975.2,1974.3,0.58266132]
[1772816054631,0.56503122,1975.0,1974.1,0.58266132]
[1772816055532,4.21803522,1975.4,1974.2,0.58266132]
[1772816055724,7.38274884,1975.3,1974.2,0.58266132]
[1772816055928,0.56503122,1975.3,1974.2,0.58266132]
[1772816056431,0.56503122,1975.3,1974.3,0.58266132]
[1772816059440,0.56503122,1975.1,1974.3,0.58266132]
[1772816059639,0.56503122,1975.1,1974.1,7.21466132]
[1772816060246,0.56503122,1974.9,1974.1,0.58266132]
[1772816060740,0.56503122,1974.7,1973.8,7.21466132]
[1772816060935,0.56503122,1974.7,1973.6,3.19453339]
[1772816060936,0.58682504,1974.6,1973.6,3.19453339]
[1772816061140,0.25318,1974.8,1973.7,0.58266132]
[1772816061141,0.56503122,1974.4,1973.7,0.58266132]
[1772816062334,0.56503122,1974.4,1973.6,0.00652766]
[1772816063045,0.56503122,1974.4,1973.6,0.58918898]
[1772816063240,0.56503122,1974.4,1973.6,0.00652766]
[1772816063438,0.56503122,1974.4,1973.6,0.58918898]
[1772816063635,0.81826122,1974.4,1973.6,0.00652766]
[1772816063844,0.56503122,1974.2,1973.6,0.00652766]
[1772816064048,0.57122579,1974.2,1973.6,0.00652766]
[1772816064240,0.57122579,1974.2,1973.1,2.61235187]
[1772816064441,0.57122579,1974.2,1972.5,0.25347]
[1772816064442,0.56503122,1974.0,1973.0,7.21466132]
[1772816064645,0.56503122,1974.0,1973.0,0.58266132]
[1772816065345,0.56503122,1974.0,1973.0,0.58815447]
[1772816065839,0.56503122,1974.0,1973.0,0.00549315]
[1772816066043,0.56503122,1973.8,1972.7,0.58266132]
[1772816067045,0.56503122,1973.8,1972.7,0.58876599]
[1772816068136,0.56503122,1973.6,1972.7,0.00610467]
[1772816068342,0.56503122,1973.4,1972.0,0.58266132]
[1772816068544,0.56503122,1973.2,1972.0,0.58266132]
[1772816069341,0.56503122,1973.2,1972.0,0.58769124]
[1772816070035,0.56503122,1973.2,1972.0,0.00502992]
[1772816070243,0.56503122,1973.0,1972.0,0.58769124]
[1772816070741,0.56503122,1973.0,1972.0,0.00502992]
[1772816070947,0.56503122,1972.8,1972.0,0.00502992]
[1772816071146,0.56941023,1972.8,1972.0,0.00502992]
[1772816071445,0.56941023,1972.8,1971.5,0.58266132]
[1772816071646,0.59402789,1972.6,1971.5,0.58266132]
[1772816071845,0.59402789,1972.4,1970.9,0.5515064]
[1772816072250,0.59402789,1972.4,1970.9,0.55594385]
[1772816072449,0.59402789,1972.4,1971.1,0.5515064]
[1772816073945,0.59402789,1972.4,1971.2,0.5515064]
[1772816076453,0.59402789,1972.4,1971.4,0.5515064]
[1772816077544,0.59402789,1972.4,1971.3,6.635]
[1772816077750,6.23561,1972.5,1970.9,0.55594385]
[1772816077751,0.59402789,1972.0,1970.9,0.55594385]
[1772816079254,0.59402789,1972.0,1970.9,0.00443745]
[1772816079452,0.59402789,1972.0,1970.9,0.55594385]
[1772816080256,0.59402789,1972.0,1970.9,0.00443745]
[1772816081250,0.59402789,1971.8,1970.9,0.00443745]
[1772816081448,0.59402789,1971.8,1970.2,6.88875]
[1772816081449,0.59402789,1971.6,1970.3,0.5515064]
[1772816082456,0.59402789,1971.6,1970.3,0.55546191]
[1772816083154,0.59402789,1971.6,1970.5,0.5515064]
[1772816084460,0.59402789,1971.6,1970.6,0.5515064]
[1772816085756,0.59402789,1971.6,1970.4,0.5515064]
[1772816085954,0.59402789,1971.3,1970.3,0.00395551]
[1772816086163,0.59402789,1970.9,1969.8,0.5515064]
[1772816086856,0.59402789,1970.9,1969.6,0.5515064]
[1772816087053,0.59402789,1970.7,1969.6,0.5515064]
[1772816087259,0.59402789,1970.6,1969.6,0.00488566]
[1772816087565,0.59402789,1970.6,1969.6,0.55639206]
[1772816087763,0.59402789,1970.5,1969.6,0.55639206]
[1772816087963,0.59402789,1970.5,1969.6,0.00488566]
[1772816088264,0.59402789,1970.5,1969.3,2.63813979]
[1772816088464,0.59402789,1970.3,1969.1,0.5515064]
[1772816089163,0.59402789,1970.3,1968.8,0.5515064]
[1772816089356,0.59402789,1970.1,1968.8,0.55557603]
[1772816089562,0.59402789,1970.0,1968.8,0.55557603]
[1772816089762,0.59402789,1970.0,1969.0,0.5515064]
[1772816093563,0.59402789,1970.0,1968.8,0.55557603]
[1772816094370,0.59402789,1969.8,1968.8,0.00406963]
[1772816094575,0.59402789,1969.6,1967.8,0.5515064]
[1772816095172,0.55074394,1969.4,1967.8,0.5515064]
[1772816095573,0.55074394,1969.4,1967.8,0.55693676]
[1772816095980,0.55074394,1969.2,1967.8,0.55693676]
[1772816096281,0.55074394,1969.0,1967.8,0.55693676]
[1772816100383,0.55074394,1969.0,1967.9,0.5827482]
[1772816100787,0.55538195,1969.2,1967.9,0.5827482]
[1772816101078,0.55538195,1969.2,1968.0,0.5827482]
[1772816101285,0.55074394,1969.0,1968.0,0.5827482]
[1772816101475,0.55074394,1969.0,1968.1,0.5827482]
[1772816101681,0.58402085,1969.2,1968.1,0.5827482]
[1772816102286,0.57938284,1969.6,1968.3,0.54977239]
[1772816102487,0.57938284,1969.6,1968.7,0.54977239]
[1772816102786,0.25378,1970.1,1968.6,0.25397]
[1772816102787,0.57938284,1970.0,1968.9,0.54977239]
[1772816103381,0.58367277,1970.0,1968.9,0.54977239]
[1772816103885,0.58367277,1970.0,1968.6,0.25397]
[1772816103886,0.57938284,1969.6,1968.6,0.54977239]
[1772816105385,0.57938284,1969.4,1968.4,0.54977239]
[1772816106481,0.57938284,1969.2,1968.4,0.54977239]
[1772816106686,0.57938284,1969.0,1968.2,3.18521277]
[1772816106891,0.57938284,1969.0,1968.2,2.63544038]
[1772816107481,0.57938284,1968.8,1967.8,0.55520275]
[1772816109788,0.57938284,1968.6,1967.8,0.00543036]
[1772816109988,0.58556618,1968.6,1967.8,0.00543036]
[1772816111390,0.57938284,1968.4,1967.4,7.18677239]
[1772816111683,0.57938284,1968.4,1967.5,0.54977239]
[1772816112286,0.57938284,1968.4,1967.5,0.0045277]
[1772816112992,0.57938284,1968.2,1967.5,0.0045277]
[1772816113294,0.57938284,1968.0,1966.9,2.62499391]
[1772816113492,0.57938284,1967.8,1967.0,0.54977239]
[1772816113691,0.26016334,1968.6,1967.2,0.54977239]
[1772816113692,0.57938284,1968.3,1967.2,0.54977239]
[1772816113989,0.57938284,1968.3,1967.4,0.54977239]
[1772816114286,0.57938284,1968.3,1967.4,0.55445623]
[1772816114787,0.57938284,1968.5,1967.6,0.54977239]
[1772816114985,0.57938284,1968.9,1968.0,0.54977239]
[1772816115188,0.34123457,1969.0,1968.2,0.54977239]
[1772816115589,0.57938284,1969.3,1968.2,0.54977239]
[1772816116091,0.58496203,1969.3,1968.2,0.54977239]
[1772816116285,0.00557919,1969.3,1968.2,0.54977239]
[1772816116489,0.58496203,1969.3,1968.2,0.54977239]
[1772816117888,0.00557919,1969.3,1968.2,0.54977239]
[1772816118287,0.83321284,1969.7,1968.5,0.54977239]
[1772816118485,6.41159746,1969.6,1968.7,0.54977239]
[1772816118690,0.57938284,1969.6,1968.7,0.54977239]
[1772816119191,0.58322087,1969.6,1968.7,0.54977239]
[1772816119589,0.58322087,1969.6,1968.8,0.54977239]
[1772816119791,0.58322087,1969.6,1968.8,0.55538847]
[1772816120588,0.00383803,1969.6,1968.8,0.55538847]
[1772816120794,0.58322087,1969.6,1969.0,0.54977239]
[1772816121688,0.58322087,1969.6,1968.8,0.55538847]
[1772816121994,0.58322087,1969.6,1968.8,0.00561608]
[1772816122198,0.58322087,1969.6,1968.3,8.70581378]
[1772816122199,0.57938284,1969.4,1968.4,0.54977239]
[1772816123197,0.57938284,1969.2,1968.4,0.55631995]
[1772816123787,0.57938284,1969.4,1968.4,0.55631995]
[1772816125196,0.58322087,1969.6,1968.5,0.54977239]
[1772816125791,0.00383803,1969.6,1968.5,0.54977239]
[1772816125995,0.57938284,1969.5,1968.4,0.00654756]
[1772816126197,0.00383803,1969.6,1967.4,0.54977239]
[1772816126198,0.57938284,1968.3,1967.4,0.54977239]
[1772816126398,0.57938284,1968.1,1967.4,0.54977239]
[1772816126594,0.57938284,1968.3,1967.4,0.54977239]
[1772816126792,0.57938284,1968.1,1967.4,0.54977239]
[1772816127194,0.58573775,1968.1,1967.4,0.55542138]
[1772816127496,0.00635491,1968.1,1967.4,0.55542138]
[1772816127697,0.00635491,1968.1,1967.5,0.54977239]
[1772816127991,0.57938284,1968.6,1967.5,0.54977239]
[1772816129095,0.58445521,1968.6,1967.5,0.54977239]
[1772816129800,0.57938284,1968.4,1967.5,0.54977239]
[1772816130098,4.22004077,1969.1,1968.4,0.54977239]
[1772816130298,0.57938284,1969.2,1968.4,0.54977239]
[1772816130499,0.57938284,1969.5,1968.4,0.54977239]
[1772816131202,0.58432663,1969.5,1968.4,0.54977239]
[1772816133496,0.00494379,1969.5,1968.4,0.54977239]
[1772816136303,0.00494379,1969.5,1968.6,0.56267641]
[1772816136600,0.60013685,1969.8,1968.6,0.56267641]
[1772816136899,0.60013685,1970.2,1968.6,0.56267641]
[1772816137103,0.60013685,1970.0,1968.6,0.56267641]
[1772816137703,0.60659479,1970.0,1968.6,0.56267641]
[1772816138396,0.00645794,1970.0,1968.8,0.56267641]
[1772816138603,0.60013685,1970.4,1969.2,0.56267641]
[1772816138805,0.60013685,1970.6,1969.4,0.56267641]
[1772816139001,0.60013685,1970.6,1969.6,0.56267641]
[1772816139699,0.00587142,1970.6,1969.6,0.56267641]
[1772816139902,0.60013685,1971.0,1969.6,0.56267641]
[1772816140203,0.60013685,1971.0,1969.8,0.56267641]
[1772816140802,0.60458745,1971.0,1969.8,0.56267641]
[1772816141004,0.60458745,1971.0,1970.0,0.56267641]
[1772816141699,0.0044506,1971.0,1970.0,0.56267641]
[1772816142105,0.60458745,1971.0,1970.0,0.56267641]
[1772816143200,0.0044506,1971.0,1970.0,0.56267641]
[1772816144704,0.0044506,1971.0,1970.0,0.81645641]
[1772816144907,0.60013685,1971.4,1970.1,0.56267641]
[1772816145912,0.60464896,1971.4,1970.1,0.56267641]
[1772816147208,0.60464896,1971.4,1970.3,0.56267641]
[1772816147405,0.00451211,1971.4,1970.5,0.56267641]
[1772816148399,0.60464896,1971.4,1970.7,0.56267641]
[1772816148798,0.00451211,1971.4,1970.7,0.56267641]
[1772816149109,0.60013685,1971.8,1970.9,0.56267641]
[1772816150010,0.60379989,1971.8,1970.8,0.56267641]
[1772816150205,0.60379989,1971.8,1970.8,7.19667641]
[1772816150411,0.60013685,1971.6,1970.8,6.634]
[1772816150805,0.60013685,1971.6,1970.8,7.19667641]
[1772816152007,0.60013685,1971.6,1970.9,0.56267641]
[1772816152810,0.60013685,1971.6,1971.0,7.19667641]
[1772816153016,0.60013685,1971.6,1971.1,0.56267641]
[1772816153218,0.60379989,1971.8,1971.1,0.56267641]
[1772816153510,0.00366304,1971.8,1971.1,0.56267641]
[1772816153810,0.60379989,1971.8,1971.1,0.56267641]
[1772816154106,0.60379989,1971.8,1970.9,0.56267641]
[1772816154310,0.60379989,1971.8,1971.0,6.634]
[1772816154708,0.60379989,1971.8,1970.9,7.19667641]
[1772816154908,0.60379989,1971.8,1971.0,0.56267641]
[1772816155208,0.00366304,1971.8,1971.0,0.56267641]
[1772816155411,0.57959569,1971.8,1971.0,0.56267641]
[1772816156308,0.57593265,1972.2,1971.2,0.5587813]
[1772816156507,0.57593265,1972.2,1971.0,0.5587813]
[1772816156712,0.57593265,1972.2,1971.2,0.5587813]
[1772816157412,0.5808318,1972.2,1971.2,0.5587813]
[1772816157613,0.57593265,1972.0,1971.2,0.5587813]
[1772816157814,0.57593265,1972.0,1971.3,6.634]
[1772816158214,0.57593265,1972.0,1971.2,0.5587813]
[1772816158413,0.57593265,1972.0,1971.3,6.634]
[1772816158914,0.57593265,1972.0,1971.3,7.1927813]